Cogmind - Beta 15 @@@ ROGUE MODE // 2025.05.07 @ 03:56:20 Player: gigi283 Result: Destroyed by Y-45 Defender with Heavy Assault Rifle Performance ------------- Evolutions (1) 500 Regions Visited (3) 600 Robots Destroyed (45) 225 Value Destroyed (822) 822 Prototype IDs (1) 20 Alien Tech Used (0) 0 Bonus (0) 0 TOTAL SCORE: 2167 Bonus ------- None Cogmind --------- Core Integrity 0/400 Matter 290/300 Energy 209/265 System Corruption 0% Temperature Cool (57) Movement Flying (29) Location -9/Materials Parts ------- > --- POWER (1) -------- Improved Ion Engine > --- PROPULSION (3) --- VTOL Module VTOL Module VTOL Module > --- UTILITY (3) ------ Weight Redist. System Advanced Visual Processing Unit > --- WEAPON (2) ------- Beamcaster Light Assault Rifle > --- INVENTORY (5) ---- Light Ion Engine Flight Unit Flight Unit Weight Redist. System Launcher Guidance Computer Peak State ------------ > --- POWER ------------ Improved Ion Engine > --- PROPULSION ------- VTOL Module VTOL Module VTOL Module > --- UTILITY ---------- Improved Heat Sink Weight Redist. System Advanced Visual Processing Unit > --- WEAPON ----------- Beamcaster Heavy Assault Rifle > --- INVENTORY -------- Light Ion Engine Flight Unit Weight Redist. System Launcher Guidance Computer [Rating: 23] Favorites ----------- Power Improved Ion Engine Engine Improved Ion Engine Propulsion Flight Unit Leg Aluminum Leg Wheel Compact Wheel Flight Unit Flight Unit Utility Improved Heat Sink Device Improved Heat Sink Storage Small Storage Unit Processor Advanced Visual Processing Unit Weapon Light Assault Rifle Energy Gun Beamcaster Ballistic Gun Light Assault Rifle Build | -11 -10 -10 -9 ------- Run | Yrd Mat Min Mat Slots Evolved 2 | . . . 2 Power . | . . . . Propulsion 1 | . . . 1 Utility 1 | . . . 1 Weapon . | . . . . Parts Attached 42 | 7 8 10 17 Power 8 | 1 1 4 2 Engine 8 | 1 1 4 2 Core . | . . . . Reactor . | . . . . Propulsion 16 | 2 3 2 9 Treads . | . . . . Leg 3 | 2 1 . . Wheel 1 | . . . 1 Hover . | . . . . Flight 12 | . 2 2 8 Utility 7 | 1 3 1 2 Device 4 | . 3 1 . Storage 1 | 1 . . . Processor 2 | . . . 2 Hackware . | . . . . Protection . | . . . . Artifact . | . . . . Weapon 11 | 3 1 3 4 Energy Gun 5 | 1 1 1 2 Energy Cannon . | . . . . Ballistic Gun 6 | 2 . 2 2 Ballistic Cannon . | . . . . Launcher . | . . . . Special Weapon . | . . . . Impact Weapon . | . . . . Slashing Weapon . | . . . . Piercing Weapon . | . . . . Special Melee Weapon . | . . . . Unidentified Prototypes 1 | . . . 1 Parts Lost 9 | . 2 . 7 Power 1 | . 1 . . Propulsion 4 | . . . 4 Utility 1 | . . . 1 Weapon 3 | . 1 . 2 Highest Loss Streak 4 | . 1 . 4 To Critical Strikes . | . . . . Average Backups 3 | 1 3 4 2 Power . | . 1 1 1 Propulsion . | . . 1 . Utility 1 | . 1 2 1 Weapon . | . . . . Tool/Special . | . . . . Unused Backups 8 | . 1 2 5 Power 1 | . . . 1 Propulsion 4 | . 1 1 2 Utility 3 | . . 1 2 Weapon . | . . . . Tool/Special . | . . . . Average Slot Usage (%) 90 | . 79 100 86 Engine 12 | . 12 14 11 Leg 3 | . 25 . . Flight 20 | . 2 28 20 Device 21 | . 1 28 22 Storage 1 | . 12 . . Processor 5 | . . . 10 Energy Gun 11 | . 4 14 11 Ballistic Gun 13 | . 19 14 10 Peak Build Rating 23 | 6 11 15 23 Average Rating 14 | 4 5 12 18 On Entrance 8 | . 6 11 15 Naked Turns . | . . . . Heaviest Build 16 | 12 14 14 16 Greatest Support 20 | 20 20 14 18 Greatest Overweight (x) 1 | . . . 1 Average Overweight (x) . | . . . . Largest Inventory Capacity 8 | 8 8 5 5 Average Capacity 5 | 7 7 5 5 Most Carried 8 | 4 8 5 5 Average Carried 3 | 1 3 4 2 Final Capacity 8 | 8 5 5 5 Final Carried 5 | 2 4 4 5 Class Distribution -------------------- 76% | Scavenger-Mutant 15% | Mutant 8% | Scavenger-Sprinter Dominant Class ---------------- Mutant | -10/Materials Scavenger-Mutant | -10/Mines Scavenger-Mutant | -9/Materials Resources | -11 -10 -10 -9 ----------- Run | Yrd Mat Min Mat Matter Collected 942 | 166 214 263 299 Remotely . | . . . . Salvage Created 1314 | . 291 136 887 Parts 82 | . 15 10 57 Haulers Intercepted 4 | . 1 . 3 Recyclers Shooed 1 | . 1 . . Parts Field Recycled . | . . . . Retrieved Matter . | . . . . Parts Self-Destructed . | . . . . Prevented . | . . . . Kills | -11 -10 -10 -9 ------- Run | Yrd Mat Min Mat Combat Hostiles Destroyed 34 | . 7 9 18 Guns 32 | . 7 9 16 AOE 2 | . . . 2 Classes Destroyed 9 | . 4 2 3 Worker 3 | . . 1 2 Builder 2 | . . . 2 Hauler 4 | . 1 . 3 Recycler 1 | . . . 1 Watcher 4 | . 1 . 3 Swarmer 19 | . 3 6 10 Grunt 8 | . 4 . 4 Sentry 4 | . . . 4 Assembled 3 | . . 3 . Best Kill Streak 13 | . 5 4 13 Combat Bots Only 8 | . 3 3 8 Max Kills in Single Turn 3 | . 2 2 3 Gunslinging 1 | . 1 . 1 Exploded 1 | . . . 1 Melee . | . . . . Uniques/NPCs Destroyed . | . . . . Combat | -11 -10 -10 -9 -------- Run | Yrd Mat Min Mat Hostile Shots Fired 208 | . 63 46 99 Missed 80 | . 21 17 42 Hits 128 | . 42 29 57 Melee 1 | . . 1 . Projectile 127 | . 42 28 57 Critical Strikes 2 | . 1 . 1 Damage Taken 1610 | . 455 272 883 Core 553 | . 57 95 401 Absorbed by Shields . | . . . . Core Remaining (%) 69 | 100 . 39 . Volleys Fired 140 | . 27 31 82 Largest 2 | . 2 2 2 Hottest 98 | . 60 85 98 Shots Fired 270 | . 48 62 160 Gun 270 | . 48 62 160 Cannon . | . . . . Launcher . | . . . . Special . | . . . . Kinetic 157 | . 44 31 82 Thermal 94 | . . 31 63 Explosive . | . . . . Electromagnetic 19 | . 4 . 15 Robot Hit Streak 11 | . 8 4 11 Robot Miss Streak 5 | . 2 4 5 Penetration Max . | . . . . Secondary Targets 9 | . 3 . 6 Max Gunslinging Chain 1 | . 1 . 1 Shots Hit Robots 148 | . 34 25 89 Core Hits 73 | . 17 14 42 Critical Kills . | . . . . Critical Parts Destroyed . | . . . . Critical Strikes 3 | . . . 3 Burn 3 | . . . 3 Melee Attacks . | . . . . Impact . | . . . . Slashing . | . . . . Piercing . | . . . . Sneak Attacks . | . . . . Combat Hostiles . | . . . . Follow-up Attacks . | . . . . Damage Inflicted 2603 | . 549 339 1715 Guns 2222 | . 453 339 1430 Cannons . | . . . . Explosions 381 | . 96 . 285 Melee . | . . . . Ramming . | . . . . Kinetic 916 | . 412 146 358 Thermal 1406 | . 96 193 1117 Explosive . | . . . . Electromagnetic 281 | . 41 . 240 Impact . | . . . . Slashing . | . . . . Piercing . | . . . . Highest Corruption . | . . . . Average Corruption . | . . . . Corruption Purged . | . . . . Corruption Blocked . | . . . . Overload Shots . | . . . . Overflow Damage 244 | . 8 . 236 Projectiles . | . . . . Explosions 244 | . 8 . 236 Melee . | . . . . Knockbacks . | . . . . Impact . | . . . . Kinetic . | . . . . Secondary . | . . . . Self-Inflicted Damage 303 | . 53 . 250 Shots 5 | . 1 . 4 Rammed 1 | . . . 1 Targets Rammed 1 | . . . 1 Kicked . | . . . . Crushed . | . . . . Highest Temperature 87 | . 75 44 87 Average Temperature 25 | . 32 19 27 Received Heat Transfer 309 | . 120 . 189 Siege Activations . | . . . . Martial Activations . | . . . . Shielding Activations . | . . . . Robots Disrupted . | . . . . Combat Hostiles . | . . . . Robots Corrupted . | . . . . Combat Hostiles . | . . . . Parts Fried . | . . . . Impact Corruptions . | . . . . Robots Melted . | . . . . Combat Hostiles . | . . . . Parts Melted 2 | . . . 2 Heat Transferred 2396 | . 100 444 1852 Parts Sabotaged . | . . . . Parts Stolen . | . . . . Parts Stripped . | . . . . Power Chain Reactions 3 | . 1 . 2 Alert | -11 -10 -10 -9 ------- Run | Yrd Mat Min Mat Maximum Alert Level 1 | . . . 1 Low Security (%) 85 | 100 100 100 70 Level 1 14 | . . . 29 Level 2 . | . . . . Level 3 . | . . . . Level 4 . | . . . . Level 5 . | . . . . High Security . | . . . . Max Security . | . . . . Peak Influence 306 | . 114 150 306 Initial 40 | . . 40 . Average 92 | . 44 38 145 Influence Increases 1075 | . 218 165 692 Destroy 0b10 Robot/C 620 | . 140 120 360 Destroy 0b10 Robot/NC 75 | . 10 10 55 Destroy Leader 156 | . 34 20 102 Disable Machine 75 | . 30 . 45 Destroy Structure 44 | . 4 . 40 Partial Spotted 15 | . . . 15 Lose Combat Pursuer 90 | . . 15 75 Influence Decreases 878 | . 114 269 495 Entered New Map 64 | . . 64 . Time Decay 670 | . 100 145 425 Lost Part 84 | . 14 . 70 Lost Ally 60 | . . 60 . Squads Dispatched 4 | . . . 4 Investigation 1 | . . . 1 Extermination . | . . . . Reinforcement 3 | . . . 3 Assault . | . . . . Garrison . | . . . . Intercept . | . . . . Searches Triggered . | . . . . Construction Impeded . | . . . . Haulers Reinforced . | . . . . Active Scanning Responses . | . . . . Cargo Convoy Interrupts . | . . . . Stealth | -11 -10 -10 -9 --------- Run | Yrd Mat Min Mat Distress Signals 6 | . 2 . 4 Communications Jammed . | . . . . Distress Signals . | . . . . Times Spotted 56 | . 14 10 32 Peak Tracking Total 10 | . 6 3 10 Tactical Retreats 4 | . . 1 3 Traps | -11 -10 -10 -9 ------- Run | Yrd Mat Min Mat Traps Triggered 1 | . . . 1 Indirectly . | . . . . Trap Hack Attempts . | . . . . Triggered . | . . . . Disarmed . | . . . . Reprogrammed . | . . . . Reused . | . . . . Traps Extracted . | . . . . Installed . | . . . . Triggered . | . . . . Machines | -11 -10 -10 -9 ---------- Run | Yrd Mat Min Mat Machines Disabled 6 | . 3 . 3 Max in Single Turn 2 | . 1 . 2 Machines Repaired . | . . . . Machines Dismantled . | . . . . Machines Sabotaged . | . . . . Overloaded Fab Kills . | . . . . Hacking | -11 -10 -10 -9 --------- Run | Yrd Mat Min Mat Machines Accessed . | . . . . Terminals . | . . . . Fabricators . | . . . . Repair Stations . | . . . . Recycling Units . | . . . . Scanalyzers . | . . . . Garrison Access . | . . . . Total Hacks . | . . . . Successful . | . . . . Failed . | . . . . Catastrophic . | . . . . Database Lockouts . | . . . . Manual . | . . . . Terminals . | . . . . Fabricators . | . . . . Repair Stations . | . . . . Recycling Units . | . . . . Scanalyzers . | . . . . Garrison Access . | . . . . Terminal Hacks . | . . . . Fabricator Hacks . | . . . . Repair Station Hacks . | . . . . Recycling Unit Hacks . | . . . . Scanalyzer . | . . . . Garrison Access Hacks . | . . . . Unauthorized Hacks . | . . . . Terminals . | . . . . Fabricators . | . . . . Repair Stations . | . . . . Recycling Units . | . . . . Scanalyzers . | . . . . Garrison Access . | . . . . Data Cores Recovered . | . . . . Used . | . . . . Hacking Detections . | . . . . Full Trace Events . | . . . . Feedback Events . | . . . . Feedback Blocked . | . . . . Robot Schematics Acquired . | . . . . Robots Built . | . . . . Authchips . | . . . . Time . | . . . . Total Robot Build Rating . | . . . . Part Schematics Acquired . | . . . . Parts Built . | . . . . Authchips . | . . . . Time . | . . . . Total Part Build Rating . | . . . . Parts Repaired . | . . . . Time . | . . . . Parts Recycled . | . . . . Recycled Matter . | . . . . Retrieved Matter . | . . . . Retrieved Components . | . . . . Parts Scanalyzed . | . . . . Part Schematics Acquired . | . . . . Parts Damaged . | . . . . Bothacking | -11 -10 -10 -9 ------------ Run | Yrd Mat Min Mat Used RIF Installer . | . . . . Robots Hacked . | . . . . Non-combat . | . . . . Combat . | . . . . Robot Hacks Applied . | . . . . Relay Couplers Released . | . . . . Fabnet Peak Effective % . | . . . . Robots Rewired . | . . . . Allies Hacked . | . . . . Hacks Repelled . | . . . . Allies | -11 -10 -10 -9 -------- Run | Yrd Mat Min Mat Total Allies 3 | . . 3 . Largest Group 3 | . . 3 . Highest-Rated Group 70 | . . 70 . Highest-Rated Ally 31 | . . 31 . Total Orders . | . . . . Ally Attacks 11 | . . 11 . Total Damage 104 | . . 104 . Kills 3 | . . 3 . Allies Corrupted . | . . . . Allies Melted . | . . . . Intel | -11 -10 -10 -9 ------- Run | Yrd Mat Min Mat Active Infowar (turns) 1079 | . . . 1079 Optics 1079 | . . . 1079 Robot Analysis Total . | . . . . Derelict Logs Recovered 1 | . . 1 . Drone Launches . | . . . . Drone Recoveries . | . . . . Exploration | -11 -10 -10 -9 ------------- Run | Yrd Mat Min Mat Turns Passed 2118 | 94 276 667 1081 Spaces Moved 1734 | 73 167 788 706 Core 12 | 12 . . . Treads . | . . . . Legs 191 | 61 130 . . Wheels . | . . . . Hover . | . . . . Flight 1531 | . 37 788 706 Fastest Speed 29 | 50 37 37 29 Average Speed 50 | 108 101 37 47 Slowest Speed 120 | 120 120 37 120 Overloaded Moves . | . . . . Propulsion Burnouts . | . . . . Robots Hopped 5 | . 1 1 3 Potential Cave-ins . | . . . . Cave-ins Triggered . | . . . . Exploration Rate (%) 45 | 4 27 98 54 Regions Visited 3 Branch Regions 1 Pre-discovered Areas 1 | . . 1 . Known Exits Taken . | . . . . Unknown Exits Taken 3 | 1 1 1 . Scrap Searched 2 | . . 2 . Spaces Dug . | . . . . Terrain Destroyed 49 | . 3 . 46 Melee . | . . . . Projectile . | . . . . AOE 49 | . 3 . 46 Terrain Rammed . | . . . . Walls Destroyed . | . . . . Machines Disabled . | . . . . Actions | -11 -10 -10 -9 --------- Run | Yrd Mat Min Mat Total 2721 | 88 224 1109 1300 Wait 737 | . 1 267 469 Move 1722 | 72 164 785 701 Hop 4 | . 1 1 2 Pick Up 39 | 8 12 3 16 Fast Attach 4 | . 2 1 1 Attach 22 | 7 3 1 11 Detach 1 | 1 . . . Swap 21 | . 5 8 8 Drop 30 | . 9 12 9 Fire 140 | . 27 31 82 Melee . | . . . . Ram 1 | . . . 1 Kick . | . . . . Crush . | . . . . Escape Stasis . | . . . . Rewire . | . . . . Trap . | . . . . Miscellaneous . | . . . . Route ------- -11/Scrapyard -10/Materials (discovered 3 exits: [*Min x2] / [*Sub]) -10/Mines (discovered 2 exits: *Mat x2) -9/Materials (discovered 2 exits: [*Mat] / [*Min]) History --------- Turn | Location | Event 4 | -11/Scrapyard | Discovered new exit (range 16) 95 | -11/Scrapyard | Entered Materials 133 | -10/Materials | Discovered new exit (range 15) 271 | -10/Materials | Discovered new exit (range 16) 303 | -10/Materials | Build established: Mutant 353 | -10/Materials | Discovered new exit (range 9) 371 | -10/Materials | Entered Mines 385 | -10/Mines | Met a Derelict bent on vengeance 510 | -10/Mines | Joined a pair of Derelicts in attacking an 0b10 outpost 553 | -10/Mines | Learned location of Zion (-7) 559 | -10/Mines | Discovered new exit (range 10) 563 | -10/Mines | Received a Mining Laser from a helpful Derelict 603 | -10/Mines | Assembled infested the area 622 | -10/Mines | Build established: Scavenger-Mutant 874 | -10/Mines | Core integrity fell below 50% 948 | -10/Mines | Discovered new exit (range 7) 1038 | -10/Mines | Entered Materials 1038 | -9/Materials | Evolved 2 slots: Propulsion x1, Utility x1 1388 | -9/Materials | Core integrity fell below 50% 1408 | -9/Materials | Destroyed 8 combat bots 1418 | -9/Materials | Lost 4 parts (2n2w) 1959 | -9/Materials | Discovered new exit (range 19) 2047 | -9/Materials | Discovered new exit (range 11) 2075 | -9/Materials | Core integrity fell below 20% 2119 | -9/Materials | Destroyed by Y-45 Defender with Heavy Assault Rifle Last Messages --------------- 02082_ Connecting with Terminal... 02082_ Current location identified: Materials 02092_ K-01 Serf collects debris. 02092_ Transport Network Coupler melted. 02092_ A-02 Transporter destroyed. 02096_ K-01 Serf collects debris. 02105_ A-02 Transporter destroyed. 02105_ K-01 Serf collects debris. 02109_ Critical hit (Burn: +37). 02109_ K-01 Serf collects debris. 02111_ Acquired 8 matter. 02112_ K-01 Serf collects debris. 02115_ Y-45 Defender destroyed. 02115_ Switching to secondary target: Y-45 Defender. 02116_ Imp. Heat Sink destroyed. 02118_ K-01 Serf collects debris. 02118_ Dropped Imp. Ion Engine. 02118_ ALERT: Hostiles spotted, dispatching reinforcements to Terminal M010. Map ----- +----------------------------------------------------+ | ?????????????????? ?????????????????????????????? | | ?????????????????? ???????????????????????????? | | ?????????????????? ???????????????????????????? | | ?????????????????? ???????????????????????????? | | ?????????????????? ???????????????????????????? | | ?????????????????? #?????? #????????????????#??? | | ?????????????????? #????? ?????????????????# ?# | | ?????????????????? #???? ??????????????????# ## | | ?????????????????# #???" ???????????????????+ | | ????????????????## ##? ????????????????????# ] | | ?????????????#### ##+###+##????????######## | | ????????????##! #????????+ | | ????????????#! #??????????# | | ?????????????! +??????????# | | ?????????????? ? #??????????# [ | | ??????????????? #### ##?????????# | | ???????????????? #" #?????????# | | ??############### #"" #?????????+ | | ??# ## [ #!! #?????????# | | ??# """ """ + %^! #"" < #?????????# ##+ | | ??# """ """ ####= #|| #?????????#####???? | | ??# """ """ #??# #"" #?????????????????? | | ??# #??# #" #?????????????????? | | ??#######+######??# #### ##?????????????????? | | ??????# ####### !**%** #??????????????????? | | ### Y =%*@* #??????????????????? | | T T % ! #??????????######### | | ### g l k #????????+ | | ????# ########## u #???????????????# | | ??????#######???# * % # "" ?????????# | | ????????????????# ![ + "" ??????????# | | ????????????????# !!! #???????????????# " | | ????????????????# !%[= #???????????????# " | | ????????????????# ![#########???????????????# " | | ????????????????## ##???????????????????????# " | | ??????????????#### #????????????????????????#[ " | | ?????????###### # #????????????????????????# | | ?????????# # ########################## | | ???????###""" " "# # T + | | ???????# = "# # ##################" | | ???????# # # """ """ #??????????????#### | | ???????# ##% # """ """ ########??????##[ ! | | ??????#" ! +% + """ """ # !#??????#%! | | ??????#" ## # # """ #??????##! ! | | ??????#" ### # # """ #???????#![! | | ??????#" ### # [ ! # """ #???????#[! | | ??????#" #?# ########### #??######### | | ??????## "#?# #?????????# #??# | | ???????#"##+######## #############+####### | | ???????### # """ | +----------------------------------------------------+ Best States ------------- Heat Dissipation 42 Energy Generation 12 Energy Capacity 265 Matter Stores 300 Matter Capacity 300 Sight Range 20 Terrain Scan Density 10 Additional Mass Support 6 Evasion (%) 64 Item Schematics ----------------- None Robot Schematics ------------------ None Fabricated ------------ Nothing Repaired ---------- Nothing Alien Tech Used ----------------- None Achievements -------------- None Challenges ------------ None Game ------ Seed CountertargetingWardroneJets Manual? 0 Play Time 00:26:43 Cumulative 49.4 hours Start 2025.05.07 @ 03:29:38 End 2025.05.07 @ 03:56:20 Sessions 1 Manual Loads 0 Difficulty Rogue Special Mode None Game No. 70 Rogue 70 Adventurer 0 Explorer 0 Win Type - Total 0 Types 0/0/0/0/0/0/0/0/0/0 Lore% 13 Gallery% 28 Achievement% 27 Wizard Run 0 Options --------- Layout 1 ASCII 0 Keyboard 0 Movement Arrows Keybinds 0 Fullscreen 1 Font 16/SmallcapsGlow Map View 50x40 Zoom Use 0% Tactical HUD 1 Map Filters NONE Filters NONE Steam SD RUN: 3b7347bf-308d-4547-aa51-efa887bfa701